bitfinex/quotes_BTCUSD_20260315
["timestamp","ask_amount","ask_price","bid_price","bid_amount"]
[1773614224944,0.06958514,72103.0,72086.0,0.06936159]
[1773614225146,0.09683126,72102.0,72086.0,0.06936159]
[1773614225726,0.09683126,72102.0,72086.0,0.06866762]
[1773614226727,0.06958514,72103.0,72086.0,0.06866762]
[1773614227085,0.06954696,72102.0,72086.0,0.06866762]
[1773614229780,5e-05,72107.0,72091.0,0.07968846]
[1773614230101,0.27614423,72122.0,72091.0,0.07968846]
[1773614230102,0.06933283,72116.0,72100.0,0.2525316]
[1773614230400,0.06933389,72115.0,72101.0,0.0014]
[1773614230619,0.0004396,72117.0,72101.0,0.00125223]
[1773614230765,1e-08,72117.0,72102.0,0.07944435]
[1773614230950,1e-08,72117.0,72101.0,0.00125223]
[1773614231147,0.09683127,72117.0,72102.0,0.0693462]
[1773614231347,0.09693784,72117.0,72102.0,0.0693462]
[1773614232033,0.20960171,72116.0,72102.0,0.0693462]
[1773614232205,0.09683126,72115.0,72102.0,0.0693462]
[1773614232405,0.09683126,72115.0,72100.0,0.0693462]
[1773614232614,0.09683126,72115.0,72099.0,0.06934812]
[1773614232615,0.09683126,72115.0,72087.0,0.06936028]
[1773614232825,0.09683126,72115.0,72088.0,0.0014]
[1773614233358,0.06933466,72114.0,72087.0,0.06936028]
[1773614233569,0.09683126,72113.0,72102.0,0.001]
[1773614233714,0.09683126,72113.0,72088.0,0.0014]
[1773614233915,0.09683126,72113.0,72089.0,0.0014]
[1773614234109,0.0002,72102.0,72089.0,0.0014]
[1773614234427,0.09683126,72101.0,72090.0,0.0014]
[1773614235828,0.16617938,72100.0,72091.0,0.06935678]
[1773614236248,0.06934812,72100.0,72091.0,0.06935678]
[1773614236416,0.09683126,72099.0,72091.0,0.06935678]
[1773614237423,0.0002,72102.0,72092.0,0.07758429]
[1773614237627,0.0002,72102.0,72091.0,0.06935678]
[1773614237833,0.06954653,72102.0,72090.0,0.07075745]
[1773614238155,0.09683126,72101.0,72090.0,0.07075745]
[1773614238356,0.06933953,72109.0,72090.0,0.07075745]
[1773614238357,0.09683126,72112.0,72090.0,0.24379834]
[1773614238557,0.06953869,72110.0,72100.0,0.17304089]
[1773614238759,0.09683126,72109.0,72100.0,0.0014]
[1773614239488,0.06934043,72108.0,72100.0,0.07059958]
[1773614239665,0.09683126,72107.0,72100.0,0.07059958]
[1773614240952,0.09683126,72106.0,72100.0,0.0014]
[1773614242341,0.09683126,72106.0,72093.0,0.0014]
[1773614242543,0.09683126,72106.0,72091.0,0.00022]
[1773614242544,0.09683126,72106.0,72092.0,0.0014]
[1773614242964,0.09193184,72102.0,72091.0,0.0014]
[1773614243160,0.09193184,72102.0,72085.0,5e-05]
[1773614243365,0.09193184,72102.0,72083.0,0.06958416]
[1773614243583,0.09193184,72102.0,72084.0,0.0014]
[1773614244416,0.09193184,72100.0,72084.0,0.0014]
[1773614245363,0.06934908,72099.0,72085.0,0.06936255]
[1773614245606,0.0002,72107.0,72086.0,0.08963157]
[1773614245607,0.06954209,72107.0,72086.0,0.08963157]
[1773614246799,0.06954209,72107.0,72086.0,0.09063157]
[1773614247157,0.06954167,72107.0,72087.0,0.06936063]
[1773614247294,0.06954167,72107.0,72088.0,0.08963157]
[1773614248832,0.06954167,72107.0,72097.0,0.05767944]
[1773614249028,0.06954167,72107.0,72097.0,0.05753169]
[1773614249214,0.06954167,72107.0,72091.0,0.06935678]
[1773614249745,0.09193184,72106.0,72092.0,0.0014]
[1773614251131,0.06934331,72105.0,72093.0,0.06935486]
[1773614251936,0.0002,72110.0,72095.0,0.05767944]
[1773614252193,0.06953858,72110.0,72100.0,0.05767944]
[1773614252377,0.06953896,72110.0,72101.0,0.0014]
[1773614252687,0.0002,72107.0,72101.0,0.0014]
[1773614253276,0.06934235,72106.0,72101.0,0.0014]
[1773614253592,0.09193184,72105.0,72088.0,0.00022]
[1773614253737,0.09193184,72105.0,72079.0,0.06936806]
[1773614253942,0.09193184,72105.0,72078.0,0.06936864]
[1773614254137,0.06934235,72106.0,72079.0,0.0014]
[1773614254342,0.09193184,72105.0,72079.0,0.0014]
[1773614254866,0.09193184,72104.0,72079.0,0.0014]
[1773614255369,0.06934524,72103.0,72081.0,0.08963157]
[1773614255569,0.06934524,72103.0,72080.0,0.07076736]
[1773614255570,0.09193184,72102.0,72080.0,0.24391429]
[1773614255890,0.09193184,72102.0,72080.0,0.07076736]
[1773614256240,0.09193184,72102.0,72080.0,0.06936736]
[1773614256483,0.06934524,72103.0,72080.0,0.06936736]
[1773614256484,0.09193184,72100.0,72081.0,0.0014]
[1773614256892,0.09193184,72100.0,72082.0,0.0014]
[1773614257221,0.09193184,72100.0,72081.0,0.0014]
[1773614257396,0.09193184,72098.0,72078.0,0.0014]
[1773614257969,0.09193184,72098.0,72077.0,0.07076929]
[1773614258171,0.09193184,72098.0,72069.0,0.15900909]
[1773614258172,0.13828121,72098.0,72068.0,0.00145]
[1773614258415,0.11047176,72095.0,72057.0,0.06938951]
[1773614258589,0.455637,72091.0,72057.0,0.06938951]
[1773614258792,0.23524414,72099.0,72056.0,0.00022]
[1773614258793,0.09193184,72087.0,72056.0,0.00022]
[1773614258996,0.09193184,72085.0,72055.0,0.06944119]
[1773614259196,0.09193184,72083.0,72055.0,5e-05]
[1773614259537,0.09193184,72081.0,72055.0,0.00010657]
[1773614260529,0.0014,72080.0,72056.0,0.08963157]
[1773614260705,0.09193184,72079.0,72056.0,0.08963157]
[1773614261078,0.09333184,72079.0,72056.0,0.08963157]
[1773614261279,0.09333184,72079.0,72055.0,0.00032657]
[1773614261513,0.09193184,72077.0,72056.0,0.06939047]
[1773614262382,0.09193184,72077.0,72057.0,0.0014]
[1773614263415,0.06937121,72076.0,72058.0,0.06938854]
[1773614263629,0.09193184,72075.0,72058.0,0.06938854]
[1773614266069,0.09193184,72073.0,72056.0,0.06938991]
[1773614266212,0.09193184,72071.0,72057.0,0.0014]
[1773614266413,0.09193184,72071.0,72052.0,0.06939399]
[1773614266414,0.09193184,72071.0,72051.0,0.00162]
[1773614266609,0.09203831,72071.0,72051.0,0.07101505]
[1773614267023,0.09203831,72071.0,72051.0,0.06961505]
[1773614267216,0.09203831,72071.0,72052.0,0.0014]
[1773614267919,0.06937699,72070.0,72052.0,0.0014]
[1773614268122,0.09193184,72069.0,72052.0,0.07079391]
[1773614268544,0.09193184,72069.0,72052.0,0.0014]
[1773614268712,0.09193184,72069.0,72052.0,0.07079342]
[1773614268920,0.09193184,72069.0,72052.0,0.07101342]
[1773614269959,0.06937699,72070.0,72053.0,0.08963157]
[1773614270113,0.06937699,72070.0,72055.0,0.08963157]
[1773614270312,0.16130883,72070.0,72054.0,0.0693924]
[1773614270570,0.16270883,72070.0,72054.0,0.0693924]
[1773614271565,0.09333184,72070.0,72054.0,0.0693924]
[1773614271942,0.06948346,72071.0,72055.0,0.09508799]
[1773614272142,0.00010647,72071.0,72056.0,0.06939047]
[1773614272864,0.09048724,72071.0,72056.0,0.06939047]
[1773614275491,0.09081629,72069.0,72053.0,0.06939323]
[1773614277772,0.06937891,72068.0,72053.0,0.06939323]
[1773614277957,0.06937891,72068.0,72056.0,0.00022]
[1773614279705,0.06937891,72068.0,72057.0,0.06938951]
[1773614280013,0.06937891,72068.0,72058.0,0.0014]
[1773614280562,0.06637891,72068.0,72058.0,0.0014]
[1773614281994,0.09081629,72067.0,72056.0,0.00022]
[1773614282440,0.06937699,72070.0,72056.0,0.00022]
[1773614282441,0.06937699,72070.0,72057.0,0.09514404]
[1773614282646,0.00010647,72071.0,72057.0,0.09514404]
[1773614282647,0.06948255,72071.0,72057.0,0.09514404]
[1773614284130,0.00010647,72071.0,72058.0,0.06938854]
[1773614284515,0.00010647,72071.0,72059.0,0.0014]
[1773614285532,0.00010647,72071.0,72059.0,0.09654404]
[1773614286129,0.00010647,72071.0,72060.0,0.06938662]
[1773614287354,0.0693706,72077.0,72061.0,0.09514404]
[1773614287580,0.06937051,72077.0,72061.0,0.09525051]
[1773614287799,0.0002,72071.0,72061.0,0.09525051]
[1773614288297,0.0002,72071.0,72062.0,0.06938469]
[1773614288524,0.0002,72071.0,72062.0,0.16452873]
[1773614288902,0.06936885,72079.0,72063.0,0.09514404]
[1773614289818,0.06936885,72079.0,72062.0,0.06938469]
[1773614290088,0.09081629,72078.0,72058.0,0.0014]
[1773614290239,0.09081629,72076.0,72058.0,0.0014]
[1773614290437,0.09221629,72075.0,72058.0,0.0014]
[1773614290636,0.09221629,72075.0,72057.0,0.0014]
[1773614291010,0.09221629,72075.0,72056.0,0.06960963]
[1773614291252,0.09221629,72075.0,72057.0,0.0014]
[1773614291819,0.09221629,72075.0,72057.0,0.0016549]
[1773614292423,0.09081629,72073.0,72058.0,0.06938854]
[1773614292832,0.09081629,72073.0,72058.0,0.06964344]
[1773614293041,0.06937314,72074.0,72058.0,0.06964344]
[1773614293242,0.09081629,72073.0,72058.0,0.06964344]
[1773614293906,0.07077314,72075.0,72058.0,0.06964344]
[1773614293907,0.06936358,72084.0,72060.0,0.17314693]
[1773614294061,0.06936599,72082.0,72062.0,0.14604582]
[1773614294397,0.07076058,72088.0,72072.0,0.09514404]
[1773614294533,0.07076058,72088.0,72071.0,0.06937603]
[1773614294534,0.06936058,72088.0,72074.0,0.09514404]
[1773614295179,0.06936058,72088.0,72073.0,0.0014]
[1773614295945,0.06936058,72088.0,72073.0,0.09654404]
[1773614296806,0.0002,72081.0,72074.0,0.06937314]
[1773614296962,5e-05,72089.0,72075.0,0.09514404]
[1773614297434,0.0002,72088.0,72075.0,0.09514404]
[1773614297600,0.16041474,72100.0,72075.0,0.09514404]
[1773614297601,0.06935015,72098.0,72075.0,0.09514404]
[1773614297804,0.06935015,72098.0,72076.0,0.0014]
[1773614298003,0.09081629,72097.0,72077.0,0.06731246]
[1773614298961,0.07074908,72099.0,72078.0,0.06936929]
[1773614298962,0.09081629,72096.0,72078.0,0.06936929]
[1773614299229,0.09081629,72096.0,72079.0,0.06714885]
[1773614299935,0.06959821,72100.0,72079.0,0.06714885]
[1773614300109,0.06959821,72100.0,72081.0,0.06855558]
[1773614300110,0.00025,72100.0,72081.0,0.06855558]
[1773614300636,0.06959831,72100.0,72083.0,0.06838727]
[1773614300852,0.06959831,72100.0,72084.0,0.06936352]
[1773614301137,0.09081629,72099.0,72084.0,0.06936352]
[1773614301395,0.09081629,72099.0,72085.0,0.0014]
[1773614301569,0.09081629,72099.0,72083.0,0.0707644]
[1773614302132,0.06959831,72100.0,72083.0,0.0707644]
[1773614302133,0.08930538,72097.0,72083.0,0.0014]
[1773614302332,0.08940884,72097.0,72083.0,0.0014]
[1773614302724,0.00010346,72097.0,72083.0,0.0014]
[1773614302969,0.00010346,72097.0,72084.0,0.06936352]
[1773614303990,0.08930538,72096.0,72084.0,0.06936352]
[1773614304738,0.00010346,72097.0,72084.0,0.06936352]
[1773614304938,0.00010346,72097.0,72084.0,0.15964064]
[1773614305162,0.00010346,72097.0,72084.0,0.06936352]
[1773614305369,0.00010346,72097.0,72085.0,0.09027712]
[1773614307280,0.00010346,72097.0,72084.0,0.06936352]
[1773614307533,0.00010346,72097.0,72084.0,0.15964064]
[1773614308323,0.0693467,72102.0,72085.0,0.09027712]
[1773614308523,0.0693467,72102.0,72085.0,0.09038058]
[1773614308697,0.06934331,72105.0,72085.0,0.09038058]
[1773614309096,0.06934331,72105.0,72086.0,0.06936159]
[1773614309297,0.06934331,72105.0,72087.0,0.09027712]
[1773614309497,0.06934331,72105.0,72087.0,0.0899276]
[1773614310422,0.06934235,72106.0,72087.0,0.0899276]
[1773614311198,0.06934235,72106.0,72088.0,0.15963679]
[1773614311419,0.06934235,72106.0,72089.0,0.0014]
[1773614311615,0.0002,72105.0,72090.0,0.09027712]
[1773614312421,5e-05,72112.0,72090.0,0.08992777]
[1773614312657,0.06938666,72112.0,72091.0,0.09027712]
[1773614312862,0.0695919,72111.0,72091.0,0.09027712]
[1773614313262,0.0002535,72111.0,72092.0,0.06935582]
[1773614313463,0.0002535,72111.0,72093.0,0.09027712]
[1773614313871,0.06959131,72111.0,72093.0,0.09027712]
[1773614314078,0.06959131,72111.0,72093.0,0.09012937]
[1773614314304,0.0002535,72111.0,72093.0,0.09012937]
[1773614314663,0.0002535,72111.0,72094.0,0.09167712]
[1773614314912,0.0002535,72111.0,72094.0,0.09152939]
[1773614316219,0.0002535,72111.0,72096.0,0.09027712]
[1773614316567,0.06959155,72111.0,72096.0,0.09027712]
[1773614316810,0.06959155,72111.0,72100.0,0.05767009]
[1773614317011,0.06959155,72111.0,72101.0,0.0014]
[1773614317579,0.0002535,72111.0,72101.0,0.0014]
[1773614317975,0.06959127,72111.0,72102.0,0.0693462]
[1773614318169,0.06959127,72111.0,72103.0,0.0014]
[1773614318467,0.06959127,72111.0,72103.0,0.00105091]
[1773614319252,0.06979127,72111.0,72103.0,0.00105091]
[1773614320297,0.0004535,72111.0,72103.0,0.07039596]
[1773614320896,0.0004535,72111.0,72103.0,0.06934505]
[1773614321098,0.0004535,72111.0,72104.0,0.0014]
[1773614321652,0.069383,72116.0,72104.0,0.09167712]
[1773614322100,0.069383,72116.0,72104.0,0.0014]
[1773614322301,5e-05,72116.0,72105.0,0.06934331]
[1773614325336,0.19489207,72114.0,72094.0,0.06935389]
[1773614325511,0.08930538,72113.0,72095.0,0.0014]
[1773614326846,0.19489207,72114.0,72095.0,0.0014]
[1773614326847,0.06933658,72112.0,72096.0,0.15962909]
[1773614327080,0.06933658,72112.0,72096.0,0.15928008]
[1773614328276,0.06933658,72112.0,72096.0,0.06900296]
[1773614329072,0.06933658,72112.0,72096.0,0.15928008]
[1773614329297,0.06933658,72112.0,72097.0,0.09027712]
[1773614330454,0.06933658,72112.0,72096.0,0.06900296]
[1773614330625,0.06933658,72112.0,72096.0,0.15928008]
[1773614331335,0.06933658,72112.0,72097.0,0.09027712]
[1773614331536,0.11065753,72140.0,72096.0,0.06900296]
[1773614331869,5e-05,72162.0,72096.0,0.06900296]
[1773614331870,0.00723792,72165.0,72132.0,0.146]
[1773614332138,0.39191879,72181.0,72166.0,0.0680558]
[1773614332139,0.0692748,72177.0,72166.0,0.0680558]
[1773614332284,0.15708629,72179.0,72166.0,0.0680558]
[1773614332486,0.06927609,72175.0,72167.0,0.13732865]
[1773614332691,0.09201785,72179.0,72168.0,0.13732865]
[1773614332893,0.09201785,72178.0,72169.0,0.13732865]
[1773614333096,0.09201785,72178.0,72170.0,0.09657788]
[1773614333097,0.09201785,72176.0,72170.0,0.09657788]
[1773614333298,0.06927414,72177.0,72165.0,0.0014]
[1773614333517,0.0710296,72178.0,72166.0,0.068056]
[1773614333928,0.00012,72183.0,72170.0,0.068056]
[1773614334131,0.00022658,72183.0,72170.0,0.068056]
[1773614334334,0.06925967,72193.0,72186.0,0.06713663]
[1773614334549,0.07094523,72197.0,72186.0,0.06698898]
[1773614334725,0.0002901,72197.0,72186.0,0.06684133]
[1773614334924,0.0002901,72197.0,72186.0,0.06639837]
[1773614335128,0.0002901,72197.0,72186.0,0.135368]
[1773614335353,0.0002901,72197.0,72187.0,0.0014]
[1773614335553,5e-05,72200.0,72188.0,0.09571471]
[1773614335753,5e-05,72200.0,72197.0,0.066104]
[1773614336062,5e-05,72200.0,72193.0,0.0014]
[1773614337145,0.00014772,72199.0,72193.0,0.00125236]
[1773614337466,5e-05,72205.0,72194.0,0.06925783]
[1773614337683,0.00015642,72205.0,72194.0,0.06925783]
[1773614337870,0.00015642,72205.0,72195.0,0.09571471]
[1773614338250,0.02723414,72210.0,72195.0,0.09571471]
[1773614338432,0.02723414,72210.0,72195.0,0.09582113]
[1773614339225,0.02723414,72210.0,72196.0,0.06925591]
[1773614339648,0.07063604,72217.0,72197.0,0.09571471]
[1773614339849,0.09201785,72223.0,72197.0,0.09571471]
[1773614340273,6e-05,72225.0,72201.0,0.05007353]
[1773614340475,6e-05,72225.0,72202.0,0.0014]
[1773614340629,6e-05,72225.0,72203.0,0.05012474]
[1773614340981,0.09201785,72224.0,72204.0,0.0014]
[1773614341126,0.09201785,72221.0,72206.0,0.06924632]
[1773614341331,0.06923098,72222.0,72207.0,0.0014]
[1773614341735,0.08528121,72221.0,72207.0,0.0014]
[1773614342172,0.06923098,72223.0,72207.0,0.0014]
[1773614342173,0.06928832,72225.0,72207.0,0.0014]
[1773614342693,0.09201785,72224.0,72207.0,0.0014]
[1773614343101,0.0014,72223.0,72204.0,0.06924728]
[1773614343309,0.0014,72223.0,72194.0,0.12764333]
[1773614343310,0.09201785,72220.0,72202.0,0.0014]
[1773614343628,0.09201785,72220.0,72197.0,0.06925455]
[1773614343629,6e-05,72225.0,72203.0,0.0014]
[1773614343829,0.09201785,72224.0,72203.0,0.0014]
[1773614344028,0.09201785,72222.0,72203.0,0.0014]
[1773614345178,0.06928825,72225.0,72204.0,0.0686228]
[1773614345179,0.06923385,72219.0,72204.0,0.0686228]
[1773614345373,0.09201785,72220.0,72204.0,0.0686228]
[1773614345584,0.0002,72224.0,72205.0,0.05849514]
[1773614345828,0.0014,72224.0,72206.0,0.00254885]
[1773614346003,0.09283772,72224.0,72206.0,0.00158131]
[1773614346212,0.0014,72225.0,72206.0,0.00126212]
[1773614346801,0.09201785,72224.0,72206.0,0.00126212]
[1773614347008,0.09201785,72224.0,72207.0,0.0014]
[1773614347409,0.06923002,72223.0,72207.0,0.06924536]
[1773614347655,0.06923002,72223.0,72208.0,0.0014]
[1773614348182,0.0001,72228.0,72207.0,0.06924536]
[1773614348183,0.09201785,72268.0,72226.0,0.0384]
[1773614348381,0.27703675,72268.0,72227.0,0.05925072]
[1773614348511,0.09201785,72267.0,72240.0,0.17301947]
[1773614348731,5e-05,72288.0,72242.0,0.0578159]
[1773614348732,0.0692332,72272.0,72242.0,0.0578159]
[1773614348927,0.0692332,72272.0,72250.0,0.17301947]
[1773614348928,0.06923327,72272.0,72250.0,0.17301947]
[1773614349165,0.06923327,72272.0,72251.0,0.0578159]
[1773614349166,5e-05,72272.0,72251.0,0.0578159]
[1773614349344,0.06917915,72277.0,72253.0,0.0578159]
[1773614349545,0.00010646,72277.0,72254.0,0.06920032]
[1773614349778,0.00010646,72277.0,72260.0,0.17301947]
[1773614350094,0.09201785,72281.0,72254.0,0.06920032]
[1773614350281,0.09201785,72276.0,72254.0,0.00035511]
[1773614350632,0.09201785,72274.0,72254.0,0.00035511]
[1773614351069,0.0014,72278.0,72254.0,0.00035511]
[1773614351269,0.0014,72277.0,72254.0,0.00035511]
[1773614351448,0.06917925,72276.0,72255.0,0.06919936]
[1773614351680,0.09201785,72275.0,72255.0,0.06919936]
[1773614352377,0.00017165,72282.0,72255.0,0.06919936]
[1773614352568,0.09341785,72281.0,72255.0,0.07059936]
[1773614352995,0.16119232,72281.0,72255.0,0.07059936]
[1773614353196,0.0014,72280.0,72255.0,0.07059936]
[1773614353376,0.09201785,72279.0,72255.0,0.07059936]
[1773614353577,0.09201785,72279.0,72255.0,0.07259936]
[1773614353905,0.09201785,72277.0,72255.0,0.07159936]
[1773614354251,0.0002,72276.0,72255.0,0.07259936]
[1773614354455,0.09149467,72277.0,72255.0,0.07159936]
[1773614354725,0.0921895,72276.0,72243.0,0.06920894]
[1773614355031,0.09201785,72275.0,72243.0,0.06920894]
[1773614355325,0.09201785,72273.0,72244.0,0.0014]
[1773614355479,0.0014,72272.0,72244.0,0.0014]
[1773614355679,0.06918404,72271.0,72245.0,0.06920894]
[1773614355880,0.09341785,72270.0,72245.0,0.06920894]
[1773614356086,0.09201785,72268.0,72245.0,0.06920894]
[1773614356334,0.09201785,72268.0,72245.0,0.07060894]
[1773614356636,0.09201785,72266.0,72245.0,0.07060894]
[1773614356834,0.0014,72268.0,72246.0,0.05772473]
[1773614357128,0.0014,72268.0,72245.0,0.07060894]
[1773614357334,0.0014,72267.0,72245.0,0.07060894]
[1773614357555,0.09201785,72264.0,72245.0,0.07060894]
[1773614358507,0.09201785,72264.0,72245.0,0.06920894]
[1773614358508,0.09201785,72262.0,72245.0,0.06920894]
[1773614358998,0.09201785,72262.0,72244.0,0.06920894]
[1773614359797,0.09201785,72261.0,72237.0,0.0692166]
[1773614359975,0.00017165,72260.0,72237.0,0.0692166]
[1773614360176,0.09201785,72259.0,72237.0,0.0692166]
[1773614360378,0.0014,72258.0,72237.0,0.0692166]
[1773614360549,0.0014,72258.0,72249.0,0.10738737]
[1773614360752,0.09341785,72258.0,72250.0,0.24274284]
[1773614360956,0.09341785,72258.0,72239.0,0.16180262]
[1773614361153,0.06919266,72263.0,72243.0,0.09259368]
[1773614361353,0.06919266,72264.0,72237.0,0.0692166]
[1773614361575,0.06919266,72264.0,72238.0,0.09571471]
[1773614361576,0.0014,72263.0,72238.0,0.09571471]
[1773614361791,0.06919361,72261.0,72239.0,0.06921469]
[1773614361987,0.0014,72262.0,72240.0,0.09931432]
[1773614362242,0.07059311,72262.0,72240.0,0.09931432]
[1773614362451,0.00028205,72283.0,72251.0,0.0713915]
[1773614362654,0.00028205,72283.0,72260.0,0.17301947]
[1773614362786,0.00028205,72283.0,72261.0,0.0014]
[1773614363187,0.00028205,72283.0,72262.0,0.07153555]
[1773614363527,1e-08,72288.0,72270.0,0.17301947]
[1773614363764,1e-08,72288.0,72272.0,0.06918308]
[1773614364310,0.09823377,72287.0,72272.0,0.06918308]
[1773614364746,0.0014,72286.0,72272.0,0.06918308]
[1773614365844,0.09963377,72286.0,72272.0,0.06918308]
[1773614366040,0.09963377,72286.0,72268.0,0.06918308]
[1773614366041,0.09963377,72286.0,72264.0,0.06919007]
[1773614366223,0.09823377,72286.0,72265.0,0.06918978]
[1773614366614,0.09823377,72284.0,72265.0,0.06918978]
[1773614367839,0.09823377,72284.0,72262.0,0.06918978]
[1773614368171,0.0014,72283.0,72262.0,0.06918978]
[1773614369297,0.09963377,72283.0,72262.0,0.06918978]
[1773614370017,1e-08,72288.0,72262.0,0.06918978]
[1773614370219,0.09823377,72285.0,72263.0,0.0014]
[1773614370337,0.09823377,72285.0,72262.0,0.06918978]
[1773614370742,0.09823377,72285.0,72261.0,0.0014]
[1773614371154,0.09823377,72285.0,72259.0,0.06919553]
[1773614371362,0.09823377,72285.0,72251.0,0.00035438]
[1773614371566,0.09823377,72285.0,72257.0,0.06919553]
[1773614371769,0.09823377,72283.0,72257.0,0.06919553]
[1773614371970,0.06917351,72282.0,72257.0,0.06919553]
[1773614372205,0.09823377,72281.0,72257.0,0.06919553]
[1773614372918,0.09823377,72281.0,72258.0,0.13638924]
[1773614373096,0.09963377,72280.0,72259.0,0.13638924]
[1773614373296,0.09963377,72280.0,72260.0,0.13638924]
[1773614373501,0.09963377,72280.0,72261.0,0.13638924]
[1773614373706,0.09963377,72280.0,72257.0,0.06919553]
[1773614374088,0.09963377,72280.0,72258.0,0.001]
[1773614374285,0.09823377,72278.0,72260.0,0.06919457]
[1773614374604,0.09823377,72278.0,72259.0,0.06919457]
[1773614374807,0.0014,72277.0,72259.0,0.06919457]
[1773614374983,0.06917231,72284.0,72259.0,0.06919457]
[1773614375183,0.0014,72283.0,72260.0,0.09931432]
[1773614375624,0.06917231,72284.0,72260.0,0.09931432]
[1773614376033,0.16740608,72284.0,72259.0,0.06919457]
[1773614376233,0.07057303,72283.0,72261.0,0.06919361]
[1773614376411,0.0014,72283.0,72262.0,0.09931432]
[1773614376600,0.06917231,72284.0,72263.0,0.0014]
[1773614376805,0.09823377,72299.0,72264.0,0.09931432]
[1773614377009,0.06916835,72288.0,72264.0,0.09931432]
[1773614377383,0.0014,72287.0,72264.0,0.09931432]
[1773614378077,0.09823377,72286.0,72263.0,0.0014]
[1773614378368,0.06917064,72285.0,72264.0,0.06919074]
[1773614379543,0.09823377,72284.0,72264.0,0.06919074]
[1773614380192,0.06917065,72288.0,72265.0,0.09931432]
[1773614380193,1e-08,72288.0,72265.0,0.09931432]
[1773614380365,0.00020001,72288.0,72271.0,0.09931432]
[1773614380540,0.00145,72291.0,72273.0,0.09931432]
[1773614380541,5e-05,72291.0,72273.0,0.09931432]
[1773614382369,5e-05,72291.0,72275.0,0.06918021]
[1773614382935,0.004,72300.0,72281.0,0.09931432]
[1773614383175,0.004,72300.0,72282.0,0.0014]
[1773614383176,0.00410632,72300.0,72282.0,0.0014]
[1773614383632,0.07326305,72300.0,72282.0,0.0014]
[1773614383871,0.0014,72299.0,72282.0,0.0014]
[1773614384211,0.0014,72299.0,72275.0,0.06918021]
[1773614384212,0.09823377,72298.0,72275.0,0.06918021]
[1773614384358,0.16739388,72296.0,72279.0,0.06917638]
[1773614384545,0.0014,72295.0,72279.0,0.07057638]
[1773614384946,0.06916006,72297.0,72279.0,0.07057638]
[1773614385370,0.0014,72296.0,72279.0,0.07057638]
[1773614385536,0.0014,72295.0,72279.0,0.07057638]
[1773614385740,0.0014,72295.0,72280.0,0.13673953]
[1773614385943,0.0014,72295.0,72281.0,0.13673953]
[1773614386278,0.0014,72295.0,72283.0,0.06917255]
[1773614386482,0.0014,72295.0,72284.0,0.13673953]
[1773614386706,0.0014,72294.0,72285.0,0.13673953]
[1773614386886,0.06915971,72297.0,72283.0,0.06917255]
[1773614386887,0.06915971,72297.0,72286.0,0.13673953]
[1773614387043,0.16739293,72298.0,72287.0,0.05039295]
[1773614387244,0.0014,72297.0,72283.0,0.06917255]
[1773614388662,0.0691582,72298.0,72283.0,0.06917255]
[1773614388983,0.0014,72297.0,72283.0,0.06917255]
[1773614389394,0.07056007,72297.0,72283.0,0.06917255]
[1773614390277,0.07056007,72297.0,72282.0,0.06917255]
[1773614390485,0.09823377,72296.0,72282.0,0.06917255]
[1773614390985,0.06914481,72312.0,72283.0,0.09931432]
[1773614391184,0.09963377,72311.0,72283.0,0.09942064]
[1773614391436,0.0014,72310.0,72283.0,0.09942064]
[1773614391654,0.0014,72309.0,72285.0,0.09931432]
[1773614391862,0.0014,72309.0,72285.0,0.09836529]
[1773614393380,0.0014,72308.0,72286.0,0.1714398]
[1773614393625,0.0014,72308.0,72286.0,0.06916968]
[1773614393801,0.0014,72307.0,72287.0,0.10227012]
[1773614393967,0.0014,72307.0,72286.0,0.06916968]
[1773614393968,0.13771771,72310.0,72290.0,0.17222538]
[1773614394139,0.07054496,72312.0,72291.0,0.10227012]
[1773614394353,0.0014,72318.0,72293.0,0.10227012]
[1773614394556,0.06913471,72323.0,72293.0,0.10227012]
[1773614394764,0.0691357,72322.0,72294.0,0.10227012]
[1773614395199,0.0014,72325.0,72295.0,0.06916107]
[1773614395504,0.0014,72325.0,72296.0,0.10227012]
[1773614397128,0.0014,72321.0,72296.0,0.10227012]
[1773614397324,0.0014,72321.0,72298.0,0.10227012]
[1773614397548,0.07053652,72321.0,72300.0,0.10227012]
[1773614398087,0.06918716,72320.0,72300.0,0.10227012]
[1773614398721,0.06918716,72320.0,72302.0,0.10227012]
[1773614398950,0.06918716,72320.0,72297.0,0.06915916]
[1773614398951,0.06918716,72320.0,72298.0,0.10227012]
[1773614399174,5e-05,72320.0,72302.0,0.10227012]
[1773614399381,5e-05,72320.0,72293.0,0.18873292]
[1773614399587,5e-05,72320.0,72290.0,0.06916495]
[1773614399588,0.09960651,72319.0,72290.0,0.06916495]
[1773614399796,0.09960651,72319.0,72288.0,0.06916744]
[1773614400001,5e-05,72320.0,72291.0,0.10367012]
[1773614400002,0.0014,72318.0,72291.0,0.10367012]
[1773614400213,5e-05,72320.0,72291.0,0.10367012]
[1773614400583,0.00145,72320.0,72291.0,0.10367012]
[1773614400964,0.08642717,72333.0,72301.0,0.18873292]
[1773614401164,0.08642717,72333.0,72302.0,0.10367012]
[1773614401165,0.10100651,72332.0,72302.0,0.10367012]
[1773614401509,0.06912665,72331.0,72304.0,0.10227012]
[1773614401766,0.06113792,72329.0,72303.0,0.06915342]
[1773614401969,0.06113792,72329.0,72304.0,0.10227012]
[1773614402380,0.0014,72328.0,72304.0,0.10227012]
[1773614402548,0.0014,72327.0,72304.0,0.10227012]
[1773614404071,0.06913143,72326.0,72306.0,0.10760512]
[1773614404461,0.06913143,72326.0,72308.0,0.10760512]
[1773614404657,0.06912968,72328.0,72308.0,0.10760512]
[1773614405003,0.07052968,72328.0,72308.0,0.10760512]
[1773614405205,0.06923598,72328.0,72308.0,0.10760512]
[1773614405434,0.06923602,72328.0,72308.0,0.10760512]
[1773614405632,0.06923608,72328.0,72308.0,0.10760512]
[1773614405950,0.06923608,72328.0,72305.0,0.06915151]
[1773614406146,0.06923608,72328.0,72286.0,0.11517639]
[1773614406147,0.06913143,72326.0,72286.0,0.11517639]
[1773614406362,0.06913143,72326.0,72295.0,0.06921081]
[1773614406538,0.0014,72325.0,72300.0,5e-05]
[1773614406683,0.06913143,72326.0,72300.0,5e-05]
[1773614406880,0.0014,72325.0,72300.0,5e-05]
[1773614407530,0.0014,72325.0,72299.0,0.11517639]
[1773614407740,0.0014,72325.0,72295.0,0.06921081]
[1773614408153,0.06913334,72324.0,72295.0,0.06921081]
[1773614408988,0.06913334,72324.0,72296.0,0.11517639]
[1773614410141,0.06913334,72324.0,72298.0,0.11517639]
[1773614410347,0.0014,72323.0,72298.0,0.11517639]
[1773614410591,0.0014,72323.0,72301.0,0.11517639]
[1773614410791,0.0014,72322.0,72301.0,0.11517639]
[1773614411413,0.06913334,72325.0,72301.0,0.11517639]
[1773614411619,0.0014,72321.0,72301.0,0.11517639]
[1773614411796,0.0014,72320.0,72301.0,0.11517639]